bitfinex/quotes_BTCUSD_20251217
["timestamp","ask_amount","ask_price","bid_price","bid_amount"]
[1765935562660,0.018,87819.0,87817.0,0.24313354]
[1765935563296,0.018,87819.0,87817.0,0.01538731]
[1765935563695,0.018,87819.0,87817.0,0.24313216]
[1765935564057,0.018,87819.0,87817.0,0.01538731]
[1765935565676,0.018,87819.0,87817.0,0.004]
[1765935567354,0.24574305,87819.0,87817.0,0.004]
[1765935567562,0.018,87819.0,87817.0,0.004]
[1765935568253,0.22774374,87818.0,87817.0,0.004]
[1765935568467,0.018,87819.0,87817.0,0.004]
[1765935569042,0.018,87819.0,87817.0,0.002]
[1765935569828,0.018,87819.0,87817.0,0.22774458]
[1765935570019,0.018,87819.0,87817.0,0.22974458]
[1765935570360,0.018,87819.0,87818.0,0.06131]
[1765935570565,0.018,87819.0,87818.0,0.06292287]
[1765935570992,0.018,87819.0,87818.0,0.03434287]
[1765935571426,0.24574114,87819.0,87818.0,0.00361287]
[1765935571816,0.24574114,87819.0,87818.0,0.00561287]
[1765935572418,0.24574114,87819.0,87818.0,0.002]
[1765935572652,0.22775411,87814.0,87813.0,0.0002489]
[1765935573840,0.22875411,87814.0,87813.0,0.0002489]
[1765935574840,0.22975411,87814.0,87813.0,0.0002489]
[1765935575693,0.002,87814.0,87813.0,0.0002489]
[1765935575892,0.002,87814.0,87813.0,0.0479689]
[1765935576337,0.002,87814.0,87813.0,0.0002489]
[1765935576523,0.02,87814.0,87813.0,0.0002489]
[1765935576724,0.019,87814.0,87813.0,0.0002489]
[1765935576939,0.02,87814.0,87813.0,0.0002489]
[1765935577574,0.019,87814.0,87813.0,0.0002489]
[1765935581503,0.02308321,87814.0,87813.0,0.0002489]
[1765935581917,0.08001325,87814.0,87813.0,0.0002489]
[1765935582139,0.019,87814.0,87813.0,0.0002489]
[1765935584204,0.02308321,87814.0,87813.0,0.0002489]
[1765935584408,0.08001325,87814.0,87813.0,0.0002489]
[1765935584835,0.08357767,87814.0,87813.0,0.0002489]
[1765935585040,0.08457767,87814.0,87813.0,0.0002489]
[1765935585253,0.08557767,87814.0,87813.0,0.0002489]
[1765935585660,0.08657767,87814.0,87813.0,0.0002489]
[1765935586075,0.08957767,87814.0,87813.0,0.0012489]
[1765935586302,0.38027767,87814.0,87813.0,0.0012489]
[1765935586548,0.37619446,87814.0,87813.0,0.0012489]
[1765935587519,0.41518312,87814.0,87813.0,0.0012489]
[1765935589872,0.57539971,87808.0,87807.0,0.0002]
[1765935590029,0.63230018,87808.0,87807.0,0.0002]
[1765935590419,0.63686505,87808.0,87807.0,0.0002]
[1765935591230,0.64186505,87808.0,87807.0,0.0012]
[1765935592339,0.52803454,87808.0,87807.0,0.0012]
[1765935592497,0.64186505,87808.0,87807.0,0.0012]
[1765935593108,0.7581962,87808.0,87807.0,0.0012]
[1765935593511,0.34763004,87807.0,87806.0,0.0002]
[1765935594237,0.35219512,87807.0,87806.0,0.0002]
[1765935594848,0.35719512,87807.0,87806.0,0.0002]
[1765935595254,0.28472825,87797.0,87796.0,0.0002]
[1765935595464,0.22782676,87786.0,87774.0,0.0002]
[1765935595780,0.3027568,87786.0,87785.0,0.00107146]
[1765935596350,0.24582676,87786.0,87785.0,0.00107146]
[1765935597396,0.24682676,87786.0,87785.0,0.00107146]
[1765935597636,0.24782676,87786.0,87785.0,0.00107146]
[1765935599552,0.36165727,87786.0,87785.0,0.00107146]
[1765935599755,0.24782676,87786.0,87785.0,0.00107146]
[1765935599961,0.36165727,87786.0,87785.0,0.00107146]
[1765935600423,0.24782676,87786.0,87785.0,0.00107146]
[1765935601357,0.42102192,87786.0,87785.0,0.00107146]
[1765935601982,0.36165727,87786.0,87785.0,0.00107146]
[1765935602192,0.65692309,87786.0,87785.0,0.00107146]
[1765935602395,0.65692309,87786.0,87785.0,1.46e-06]
[1765935602396,0.66756881,87786.0,87785.0,1.46e-06]
[1765935602602,0.692094,87786.0,87785.0,1.46e-06]
[1765935603420,2.69642639,87786.0,87785.0,1.46e-06]
[1765935603645,0.63238582,87775.0,87774.0,1.46e-06]
[1765935603822,0.6323936,87772.0,87771.0,1.46e-06]
[1765935604267,0.2907,87771.0,87770.0,1.46e-06]
[1765935604514,0.40453051,87771.0,87770.0,1.46e-06]
[1765935604965,0.34763004,87771.0,87770.0,1.46e-06]
[1765935606417,0.07493004,87771.0,87770.0,1.46e-06]
[1765935606592,0.08201325,87771.0,87770.0,1.46e-06]
[1765935606748,0.08401325,87771.0,87770.0,1.46e-06]
[1765935609998,0.21096944,87771.0,87770.0,1.46e-06]
[1765935610208,0.40453051,87761.0,87760.0,1.46e-06]
[1765935610412,0.65042217,87761.0,87760.0,1.46e-06]
[1765935610849,0.65042217,87761.0,87760.0,0.00077989]
[1765935611277,0.6549896,87761.0,87760.0,0.00077989]
[1765935611486,0.6569896,87761.0,87760.0,0.00077989]
[1765935612460,0.34172996,87758.0,87749.0,0.0002]
[1765935613527,0.35312753,87758.0,87749.0,0.0002]
[1765935613731,0.35512753,87758.0,87749.0,0.0002]
[1765935614269,0.35312753,87758.0,87749.0,0.0002]
[1765935614677,0.35612753,87758.0,87749.0,0.0002]
[1765935616117,0.35712753,87758.0,87749.0,0.0002]
[1765935616496,0.24329702,87758.0,87749.0,0.0002]
[1765935617536,0.26129702,87758.0,87749.0,0.0002]
[1765935618084,0.26129702,87758.0,87752.0,0.00024916]
[1765935619357,0.31822706,87758.0,87752.0,0.00024916]
[1765935619563,0.26129702,87758.0,87752.0,0.00024916]
[1765935620387,0.24329702,87758.0,87752.0,0.00024916]
[1765935620592,0.03339757,87758.0,87753.0,0.01293]
[1765935620804,0.022,87758.0,87757.0,0.02842]
[1765935621235,0.022,87758.0,87757.0,0.0002]
[1765935621464,0.021,87758.0,87757.0,0.0002]
[1765935621907,0.021,87758.0,87757.0,0.04404]
[1765935622115,0.018,87758.0,87757.0,0.04404]
[1765935622324,0.02,87758.0,87757.0,0.04404]
[1765935622535,0.002,87758.0,87757.0,0.27355491]
[1765935622769,0.02,87758.0,87757.0,0.38709572]
[1765935623605,0.018,87758.0,87757.0,0.38709572]
[1765935623817,0.019,87758.0,87757.0,0.38709572]
[1765935624478,0.019,87758.0,87757.0,0.38809572]
[1765935629154,0.019,87758.0,87757.0,0.27455491]
[1765935630831,0.001,87758.0,87757.0,0.38809572]
[1765935631460,0.02939289,87774.0,87773.0,0.0569]
[1765935631726,0.018,87774.0,87773.0,0.0569]
[1765935632780,0.02,87774.0,87773.0,0.0569]
[1765935632993,0.02,87774.0,87773.0,0.0579]
[1765935633434,0.02,87774.0,87773.0,0.17305368]
[1765935633641,0.002,87774.0,87773.0,0.17305368]
[1765935634271,0.018,87782.0,87781.0,0.38440054]
[1765935634508,0.018,87782.0,87781.0,0.38601341]
[1765935635787,0.01139055,87792.0,87791.0,0.05678]
[1765935635980,0.02939055,87792.0,87791.0,0.05678]
[1765935636197,0.018,87792.0,87791.0,0.05678]
[1765935636417,0.01139094,87789.0,87787.0,0.02628]
[1765935638358,0.01339094,87789.0,87787.0,0.02728]
[1765935638611,0.01339094,87789.0,87788.0,0.04365]
[1765935639675,0.002,87789.0,87788.0,0.04365]
[1765935639878,0.002,87789.0,87788.0,0.05778]
[1765935640090,0.22781877,87790.0,87788.0,0.05778]
[1765935640512,0.001,87789.0,87788.0,0.05778]
[1765935641160,0.01139068,87791.0,87789.0,0.02628]
[1765935641339,0.002,87790.0,87789.0,0.02628]
[1765935641570,0.002,87790.0,87789.0,0.04365]
[1765935642017,0.23920635,87791.0,87788.0,0.01313]
[1765935642227,0.001,87789.0,87788.0,0.001]
[1765935642437,0.001,87789.0,87787.0,0.02628]
[1765935642852,0.001,87789.0,87788.0,0.05678]
[1765935643513,0.01139081,87790.0,87788.0,0.05678]
[1765935643514,0.01139081,87790.0,87789.0,0.01737]
[1765935643733,0.01139081,87790.0,87789.0,0.04365]
[1765935643970,0.01139068,87791.0,87789.0,0.04365]
[1765935644449,0.01139068,87791.0,87790.0,0.02628]
[1765935645414,0.01339068,87791.0,87790.0,0.02628]
[1765935645863,0.01339068,87791.0,87790.0,0.04365]
[1765935646373,0.01139068,87791.0,87790.0,0.04365]
[1765935646736,0.01339068,87791.0,87790.0,0.04365]
[1765935647804,0.01339068,87791.0,87790.0,0.01737]
[1765935648422,0.002,87791.0,87790.0,0.04365]
[1765935648604,0.002,87791.0,87790.0,0.04526287]
[1765935648807,0.002,87791.0,87790.0,0.15880368]
[1765935651751,0.002,87791.0,87790.0,0.04526287]
[1765935653155,0.018,87792.0,87791.0,0.04365]
[1765935654792,0.019,87792.0,87791.0,0.04365]
[1765935655112,0.019,87792.0,87791.0,0.04465]
[1765935655543,0.019,87792.0,87791.0,0.27246378]
[1765935656177,0.019,87792.0,87791.0,0.04465]
[1765935664867,0.019,87792.0,87791.0,0.05778]
[1765935665082,0.019,87792.0,87791.0,0.0315]
[1765935666157,0.019,87792.0,87791.0,0.001]
[1765935667318,0.07101751,87792.0,87791.0,0.001]
[1765935668467,0.019,87792.0,87791.0,0.001]
[1765935670453,0.24681119,87792.0,87791.0,0.001]
[1765935671823,0.3606417,87792.0,87791.0,0.001]
[1765935672026,0.66203528,87792.0,87791.0,0.001]
[1765935672260,0.68666889,87792.0,87791.0,0.001]
[1765935672459,0.80300004,87792.0,87791.0,0.001]
[1765935672627,0.01139471,87760.0,87757.0,0.0002]
[1765935672814,0.018,87759.0,87757.0,0.00181287]
[1765935673015,0.018,87759.0,87758.0,0.27055945]
[1765935673693,0.018,87759.0,87758.0,0.38571313]
[1765935674226,0.018,87759.0,87758.0,0.38671313]
[1765935674507,0.018,87759.0,87758.0,0.27317232]
[1765935674802,0.018,87759.0,87758.0,0.27217232]
[1765935675089,0.018,87759.0,87758.0,0.27517232]
[1765935675318,0.019,87759.0,87758.0,0.27217232]
[1765935675712,0.018,87759.0,87758.0,0.27217232]
[1765935676504,0.018,87759.0,87758.0,0.38771313]
[1765935680526,0.018,87759.0,87758.0,0.27417232]
[1765935680728,0.23921264,87788.0,87787.0,0.04266]
[1765935680932,0.25721264,87788.0,87787.0,0.01797]
[1765935681306,0.25721264,87788.0,87781.0,0.01313]
[1765935681307,0.23922354,87784.0,87781.0,0.01313]
[1765935681507,0.22783714,87782.0,87781.0,0.01313]
[1765935681709,0.23923924,87779.0,87776.0,0.03782]
[1765935682030,0.23923924,87779.0,87777.0,0.04266]
[1765935682230,0.23923924,87779.0,87778.0,0.02469]
[1765935682645,0.23923924,87779.0,87776.0,0.04921263]
[1765935682842,0.22785012,87777.0,87776.0,0.0311]
[1765935683048,0.22785562,87775.0,87773.0,0.01313]
[1765935684429,0.01139367,87768.0,87761.0,0.22788991]
[1765935684642,0.01139367,87768.0,87764.0,0.02469]
[1765935684851,0.01139367,87768.0,87766.0,0.02469]
[1765935685047,0.01139367,87768.0,87767.0,0.04266]
[1765935685250,0.01139354,87769.0,87767.0,0.04266]
[1765935685455,0.01139341,87770.0,87768.0,0.02469]
[1765935685662,0.01139315,87772.0,87769.0,0.05579]
[1765935685879,0.01139315,87772.0,87770.0,0.02469]
[1765935686086,0.23925079,87774.0,87770.0,0.02469]
[1765935686087,0.01139289,87774.0,87770.0,0.03608341]
[1765935686294,0.01139289,87774.0,87771.0,0.23925897]
[1765935686539,0.01139289,87774.0,87773.0,0.04266]
[1765935686759,0.23924703,87776.0,87775.0,0.04266]
[1765935687636,0.23924703,87776.0,87775.0,0.01797]
[1765935687844,0.23925447,87773.0,87770.0,0.02469]
[1765935688295,0.23925447,87773.0,87772.0,0.01797]
[1765935688503,0.23925447,87773.0,87772.0,0.04266]
[1765935688738,0.23925447,87773.0,87769.0,0.02452354]
[1765935688739,0.22786668,87771.0,87769.0,0.01313]
[1765935689948,0.22786668,87771.0,87770.0,0.001]
[1765935690154,0.22786668,87771.0,87769.0,0.03782]
[1765935690497,0.22786668,87771.0,87769.0,0.03882]
[1765935690707,0.22786668,87771.0,87769.0,0.03782]
[1765935691113,0.22786668,87771.0,87770.0,0.001]
[1765935691332,0.001,87771.0,87770.0,0.02569]
[1765935691544,0.001,87771.0,87770.0,0.04366]
[1765935692184,0.01139276,87775.0,87774.0,0.05579]
[1765935694067,0.001,87775.0,87774.0,0.05579]
[1765935695945,0.001,87775.0,87774.0,0.0311]
[1765935696119,0.001,87775.0,87774.0,0.05698]
[1765935697471,0.001,87775.0,87774.0,0.05859287]
[1765935697682,0.001,87775.0,87774.0,0.17213368]
[1765935698107,0.01138965,87799.0,87798.0,0.04284]
[1765935698307,0.25718267,87799.0,87798.0,0.04284]
[1765935698507,0.25718267,87799.0,87798.0,0.01696]
[1765935698715,0.25718267,87799.0,87796.0,0.01195]
[1765935699710,0.25718267,87799.0,87798.0,0.001]
[1765935699915,0.25718267,87799.0,87796.0,0.01195]
[1765935700308,0.25718267,87799.0,87796.0,0.01295]
[1765935700524,0.25718267,87799.0,87796.0,0.01195]
[1765935700866,0.01138991,87797.0,87794.0,0.02588]
[1765935701164,0.01138991,87797.0,87793.0,0.01139042]
[1765935701688,0.01138991,87797.0,87794.0,0.0113903]
[1765935701903,0.01139017,87795.0,87790.0,0.01195]
[1765935702255,0.01139004,87796.0,87793.0,0.23919875]
[1765935702456,0.01139004,87796.0,87793.0,0.24019875]
[1765935702677,0.01139004,87796.0,87793.0,0.23919875]
[1765935703433,0.23918849,87797.0,87793.0,0.23919875]
[1765935703581,0.23918849,87797.0,87793.0,0.24019875]
[1765935703983,0.23919274,87796.0,87793.0,0.002]
[1765935704180,0.227806,87794.0,87793.0,0.002]
[1765935704411,0.23919274,87796.0,87793.0,0.001]
[1765935705268,0.23919274,87796.0,87791.0,0.01139068]
[1765935705623,0.01139017,87795.0,87793.0,0.001]
[1765935705828,0.01139017,87795.0,87791.0,0.01139068]
[1765935706234,0.01139017,87795.0,87793.0,0.002]
[1765935706610,0.01139017,87795.0,87793.0,0.001]
[1765935708103,0.01139017,87795.0,87793.0,0.002]
[1765935708310,0.02938965,87799.0,87795.0,0.22780255]
[1765935708524,0.02938965,87799.0,87796.0,0.02588]
[1765935708739,0.018,87799.0,87798.0,0.04284]
[1765935709640,0.019,87799.0,87798.0,0.04284]
[1765935710073,0.018,87799.0,87798.0,0.04384]
[1765935710504,0.019,87799.0,87798.0,0.04384]
[1765935718790,0.019,87799.0,87798.0,0.15899368]
[1765935722159,0.019,87799.0,87798.0,0.04545287]
[1765935723330,0.019,87799.0,87798.0,0.001]
[1765935723930,0.02308321,87799.0,87798.0,0.001]
[1765935726288,0.019,87799.0,87798.0,0.001]
[1765935726709,0.02308321,87799.0,87798.0,0.001]
[1765935729877,0.019,87799.0,87798.0,0.001]
[1765935731868,0.02308321,87799.0,87798.0,0.001]
[1765935732272,0.019,87799.0,87798.0,0.001]
[1765935732942,0.02308321,87799.0,87798.0,0.001]
[1765935733153,0.50354406,87799.0,87798.0,0.001]
[1765935733364,0.22788387,87764.0,87762.0,0.01221]
[1765935733543,0.22789685,87759.0,87757.0,0.02527]
[1765935733983,0.22789685,87759.0,87757.0,0.0002]
[1765935734190,0.01139471,87760.0,87757.0,0.0002]
[1765935734390,0.22789685,87759.0,87757.0,0.0002]
[1765935734938,0.22789685,87759.0,87757.0,0.0012]
[1765935735128,0.00408321,87758.0,87757.0,0.0012]
[1765935735331,0.00408321,87758.0,87757.0,0.0002]
[1765935735569,0.00408321,87758.0,87757.0,0.0012]
[1765935735771,0.003,87759.0,87757.0,0.0012]
[1765935735950,0.22989904,87759.0,87757.0,0.0012]
[1765935736148,0.22789904,87759.0,87757.0,0.0002]
[1765935736347,0.002,87758.0,87757.0,0.0002]
[1765935736760,0.001,87758.0,87757.0,0.0002]
[1765935737648,0.22789904,87759.0,87757.0,0.0002]
[1765935738086,0.23089904,87759.0,87757.0,0.0012]
[1765935738289,0.22989904,87759.0,87757.0,0.0012]
[1765935738495,0.00408321,87758.0,87757.0,0.0012]
[1765935738697,0.00508321,87758.0,87757.0,0.0012]
[1765935738898,0.22989904,87759.0,87757.0,0.0012]
[1765935739212,0.23089904,87759.0,87757.0,0.0012]
[1765935739446,0.22789904,87759.0,87757.0,0.0002]
[1765935739641,0.002,87758.0,87757.0,0.0012]
[1765935739856,0.003,87758.0,87757.0,0.0012]
[1765935740845,0.001,87758.0,87757.0,0.0002]
[1765935741407,0.001,87758.0,87757.0,0.0012]
[1765935741605,0.22989904,87759.0,87757.0,0.0012]
[1765935741785,0.22789904,87759.0,87757.0,0.0002]
[1765935742122,0.002,87758.0,87757.0,0.0012]
[1765935742555,0.22889904,87759.0,87757.0,0.0002]
[1765935742965,0.22989904,87759.0,87757.0,0.0012]
[1765935743380,0.001,87758.0,87757.0,0.0012]
[1765935744242,0.001,87758.0,87757.0,0.0002]
[1765935744645,0.22789904,87759.0,87757.0,0.0002]
[1765935745048,0.002,87758.0,87757.0,0.0012]
[1765935745540,0.001,87758.0,87757.0,0.0002]
[1765935745804,0.001,87758.0,87757.0,0.0012]
[1765935747151,0.001,87758.0,87757.0,0.0002]
[1765935747564,0.003,87758.0,87757.0,0.0012]
[1765935749312,0.00708321,87758.0,87757.0,0.0012]
[1765935749515,0.12091372,87758.0,87757.0,0.0012]
[1765935749796,0.11683051,87758.0,87757.0,0.0012]
[1765935749971,0.003,87758.0,87757.0,0.0012]
[1765935751128,0.021,87758.0,87757.0,0.0012]
[1765935751755,0.003,87758.0,87757.0,0.0012]
[1765935751986,0.021,87758.0,87757.0,0.0012]
[1765935756831,0.021,87758.0,87757.0,0.0524]
[1765935757148,0.021,87758.0,87757.0,0.05401287]
[1765935759196,0.021,87758.0,87757.0,0.03058287]
[1765935759563,0.021,87758.0,87757.0,0.01422287]
[1765935759717,0.021,87758.0,87757.0,0.00281287]
[1765935759897,0.021,87758.0,87757.0,0.04260287]
[1765935760104,0.021,87758.0,87757.0,0.01917287]
[1765935761170,0.021,87758.0,87757.0,0.00281287]
[1765935766675,0.021,87758.0,87757.0,0.02624287]
[1765935766878,0.021,87758.0,87757.0,0.00281287]
[1765935767671,0.021,87758.0,87757.0,0.02624287]
[1765935767872,0.021,87758.0,87757.0,0.00281287]
[1765935772238,0.021,87758.0,87757.0,0.0012]
[1765935772450,0.02508321,87758.0,87757.0,0.0012]
[1765935774055,0.13483051,87758.0,87757.0,0.0012]
[1765935774238,0.13891372,87758.0,87757.0,0.0012]
[1765935774968,0.31578321,87758.0,87757.0,0.0012]
[1765935775173,0.40453051,87753.0,87752.0,0.00024916]
[1765935775375,0.41522198,87753.0,87752.0,0.00024916]
[1765935775580,0.43985396,87753.0,87752.0,0.00024916]
[1765935776183,0.44185396,87753.0,87752.0,0.00124916]
[1765935776382,0.41722198,87753.0,87752.0,0.00124916]
[1765935777406,0.41522198,87753.0,87752.0,0.00024916]
[1765935777608,0.41822198,87753.0,87752.0,0.00024916]
[1765935777815,0.42222198,87753.0,87752.0,0.00024916]
[1765935778012,0.41153051,87753.0,87752.0,0.00024916]
[1765935780194,0.52786166,87753.0,87752.0,0.00024916]
[1765935780815,0.41153051,87753.0,87752.0,0.00024916]
[1765935782442,0.22796179,87734.0,87733.0,0.0002]
[1765935782660,0.24596179,87734.0,87733.0,0.0002]
[1765935783070,0.24596179,87734.0,87733.0,0.0007919]
[1765935783775,0.24696179,87734.0,87733.0,0.0007919]
[1765935784274,0.24896179,87734.0,87733.0,0.0007919]
[1765935789250,0.3627923,87734.0,87733.0,0.0007919]
[1765935790113,0.24896179,87734.0,87733.0,0.0007919]
[1765935790324,0.3627923,87734.0,87733.0,0.0007919]
[1765935791749,0.3607923,87734.0,87733.0,0.0007919]
[1765935791956,0.3597923,87734.0,87733.0,0.0007919]
[1765935792159,0.3617923,87734.0,87733.0,0.0007919]
[1765935793193,0.3637923,87734.0,87733.0,0.0007919]
[1765935798169,0.24996179,87734.0,87733.0,0.0007919]
[1765935798856,0.3637923,87734.0,87733.0,0.0007919]
[1765935801203,0.37446185,87734.0,87733.0,0.0007919]
[1765935801615,0.3637923,87734.0,87733.0,0.0007919]
[1765935802075,0.24996179,87734.0,87733.0,0.0007919]
[1765935803247,0.26063939,87734.0,87733.0,0.0007919]
[1765935803451,0.24996179,87734.0,87733.0,0.0007919]
[1765935803663,0.37446993,87734.0,87733.0,0.0007919]
[1765935803867,0.74488106,87734.0,87733.0,0.0007919]
[1765935804125,0.77406008,87734.0,87733.0,0.0007919]
[1765935804293,0.69434895,87734.0,87733.0,0.0007919]
[1765935807134,0.66973874,87734.0,87733.0,0.0007919]
[1765935811418,0.66974253,87734.0,87733.0,0.0007919]
[1765935812486,0.66517372,87734.0,87733.0,0.0007919]
[1765935813483,0.55134321,87734.0,87733.0,0.0007919]
[1765935814997,0.66517372,87734.0,87733.0,0.0007919]
[1765935816214,0.64717372,87734.0,87733.0,0.0007919]
[1765935816424,0.66517372,87734.0,87733.0,0.0007919]
[1765935816738,0.55134321,87734.0,87733.0,0.0007919]
[1765935817292,0.66517372,87734.0,87733.0,0.0007919]
[1765935820898,0.55134321,87734.0,87733.0,0.0007919]
[1765935821351,0.24264321,87734.0,87733.0,0.0518619]
[1765935821543,0.26064321,87734.0,87733.0,0.0518619]
[1765935822087,0.24996179,87734.0,87733.0,0.0518619]
[1765935822513,0.24996179,87734.0,87733.0,0.0274319]
[1765935823697,0.24996179,87734.0,87733.0,0.0518619]
[1765935823901,0.24996179,87734.0,87733.0,0.0274319]
[1765935824076,0.24996179,87734.0,87733.0,0.0007919]
[1765935825257,0.26064916,87734.0,87733.0,0.0007919]
[1765935826209,0.26064872,87734.0,87733.0,0.0007919]
[1765935826416,0.26064812,87734.0,87733.0,0.0007919]
[1765935828550,0.24996179,87734.0,87733.0,0.0007919]
[1765935829441,0.26064722,87734.0,87733.0,0.0007919]
[1765935830071,0.24996179,87734.0,87733.0,0.0007919]
[1765935830716,0.26064641,87734.0,87733.0,0.0007919]
[1765935830894,0.24996179,87734.0,87733.0,0.0007919]
[1765935831096,0.26064641,87734.0,87733.0,0.0007919]
[1765935831327,0.24996179,87734.0,87733.0,0.0007919]
[1765935831533,0.37447654,87734.0,87733.0,0.0007919]
[1765935848320,0.34763004,87733.0,87732.0,1.9e-06]
[1765935848491,0.38295401,87733.0,87732.0,1.9e-06]
[1765935849641,0.38595401,87733.0,87732.0,1.9e-06]
[1765935851442,0.5581316,87733.0,87732.0,1.9e-06]
[1765935851704,0.63251309,87726.0,87725.0,1.17e-06]
[1765935851821,0.66783706,87726.0,87725.0,1.17e-06]
[1765935853539,0.67083706,87726.0,87725.0,1.17e-06]
[1765935853873,0.67283706,87726.0,87725.0,1.17e-06]
[1765935855912,0.78916821,87726.0,87725.0,1.17e-06]
[1765935856124,0.67283706,87726.0,87725.0,1.17e-06]
[1765935859679,0.68424034,87726.0,87725.0,1.17e-06]
[1765935863984,0.67283706,87726.0,87725.0,1.17e-06]
[1765935865437,0.64819733,87726.0,87725.0,1.17e-06]
[1765935866210,0.69076441,87726.0,87725.0,1.17e-06]
[1765935866708,0.66619733,87726.0,87725.0,1.17e-06]
[1765935870318,0.55236682,87726.0,87725.0,1.17e-06]
[1765935871360,0.53436682,87726.0,87725.0,1.17e-06]
[1765935871565,0.55236682,87726.0,87725.0,1.17e-06]
[1765935873927,0.57710682,87726.0,87725.0,1.17e-06]
[1765935874141,0.57709552,87726.0,87725.0,1.17e-06]
[1765935874809,0.69092603,87726.0,87725.0,1.17e-06]
[1765935878419,0.57709552,87726.0,87725.0,1.17e-06]
[1765935878630,0.69092603,87726.0,87725.0,1.17e-06]
[1765935881188,0.71554843,87726.0,87725.0,1.17e-06]
[1765935896696,0.7155699,87726.0,87725.0,1.17e-06]
[1765935901338,0.60173939,87726.0,87725.0,1.17e-06]
[1765935901538,0.57711699,87726.0,87725.0,1.17e-06]
[1765935902117,0.28641699,87726.0,87725.0,1.17e-06]
[1765935902323,0.26167699,87726.0,87725.0,1.17e-06]
[1765935902526,0.3725075,87726.0,87725.0,1.17e-06]
[1765935903488,0.3735075,87726.0,87725.0,1.17e-06]
[1765935903634,0.3725075,87726.0,87725.0,1.17e-06]
[1765935904008,0.25667699,87726.0,87725.0,0.04071117]
[1765935904184,0.02869441,87726.0,87725.0,0.04071117]
[1765935904393,0.03069441,87726.0,87725.0,0.04071117]
[1765935904637,0.02,87726.0,87725.0,0.04071117]
[1765935904847,0.018,87726.0,87725.0,0.04071117]
[1765935905049,0.018,87726.0,87725.0,0.04232404]
[1765935905260,0.019,87726.0,87725.0,0.04232404]
[1765935906602,0.019,87726.0,87725.0,0.04332404]
[1765935906809,0.019,87726.0,87725.0,0.00261404]
[1765935907020,0.13283051,87726.0,87725.0,0.00100117]
[1765935909772,0.019,87726.0,87725.0,0.05204117]
[1765935910597,0.019,87726.0,87725.0,0.05365404]
[1765935914313,0.019,87726.0,87725.0,0.00261404]
[1765935914520,0.13691372,87726.0,87725.0,0.00100117]
[1765935915485,0.019,87726.0,87725.0,0.00100117]
[1765935926311,0.019,87726.0,87725.0,0.02425117]
[1765935926522,0.019,87726.0,87725.0,0.04188404]
[1765935929898,0.019,87726.0,87725.0,0.01863404]
[1765935930460,0.019,87726.0,87725.0,0.00261404]
[1765935931081,0.02969659,87726.0,87725.0,0.00261404]
[1765935934040,0.02969867,87726.0,87725.0,0.00261404]
[1765935941286,0.02969867,87726.0,87725.0,0.00100117]
[1765935941643,0.02970023,87726.0,87725.0,0.00100117]
[1765935944614,0.02970025,87726.0,87725.0,0.00100117]
[1765935950363,0.14353076,87726.0,87725.0,0.00100117]
[1765935958354,0.14353123,87726.0,87725.0,0.00100117]
[1765935958857,0.14761444,87726.0,87725.0,0.00100117]
[1765935960574,0.14353123,87726.0,87725.0,0.00100117]
[1765935962319,0.14761444,87726.0,87725.0,0.00100117]
[1765935964569,0.14353123,87726.0,87725.0,0.00100117]
[1765935964895,0.02970072,87726.0,87725.0,0.00100117]
[1765935965275,0.14353123,87726.0,87725.0,0.00100117]
[1765935965476,0.03378393,87726.0,87725.0,0.00100117]
[1765935965676,0.46200525,87726.0,87725.0,1.17e-06]
[1765935965854,0.48257707,87726.0,87725.0,1.17e-06]
[1765935966059,0.51333303,87726.0,87725.0,1.17e-06]
[1765935966260,0.48157707,87726.0,87725.0,1.17e-06]
[1765935966459,0.01140211,87703.0,87700.0,5.7e-05]
[1765935966668,0.018,87702.0,87700.0,5.7e-05]
[1765935966875,0.24604497,87702.0,87700.0,5.7e-05]
[1765935967495,0.11383051,87701.0,87700.0,5.7e-05]
[1765935968015,0.11383051,87701.0,87700.0,0.001057]
[1765935968155,0.11383051,87701.0,87700.0,5.7e-05]
[1765935968365,0.11383051,87701.0,87700.0,0.00083623]
[1765935969180,0.35987548,87702.0,87700.0,0.00083623]
[1765935969386,0.11383051,87701.0,87700.0,0.00083623]
[1765935969591,0.11383051,87701.0,87700.0,5.7e-05]
[1765935973783,0.11791372,87701.0,87700.0,5.7e-05]
[1765935977389,0.00408321,87701.0,87700.0,5.7e-05]
[1765935977612,0.13590047,87701.0,87700.0,5.7e-05]
[1765935977843,0.13590047,87701.0,87700.0,0.00083623]
[1765935978274,0.02206996,87701.0,87700.0,0.00083623]
[1765935978479,0.018,87701.0,87700.0,0.00083623]
[1765935978702,0.02,87701.0,87700.0,0.00083623]
[1765935978903,0.24904757,87701.0,87700.0,0.04100623]
[1765935979089,0.021,87701.0,87700.0,0.0426191]
[1765935979297,0.23944643,87703.0,87702.0,0.05246]
[1765935979495,0.25744643,87703.0,87702.0,0.05246]
[1765935979726,0.25744643,87703.0,87702.0,0.05317688]
[1765935980094,0.25744643,87703.0,87702.0,0.02822688]
[1765935980347,0.25744643,87703.0,87702.0,0.05317688]
[1765935980567,0.25944643,87703.0,87702.0,0.05317688]
[1765935980839,0.25944643,87703.0,87702.0,0.02822688]
[1765935981043,0.25944643,87703.0,87702.0,0.05317688]
[1765935981408,0.26044643,87703.0,87702.0,0.05317688]
[1765935981822,0.26044643,87703.0,87702.0,0.02822688]
[1765935982568,0.26044643,87703.0,87702.0,0.05317688]
[1765935982791,0.03240211,87703.0,87702.0,0.02822688]
[1765935983002,0.021,87703.0,87702.0,0.05478975]
[1765935983213,0.021,87703.0,87702.0,0.06847244]
[1765935983214,0.003,87703.0,87702.0,0.06847244]
[1765935983424,0.021,87703.0,87702.0,0.05478975]
[1765935983850,0.003,87703.0,87702.0,0.05478975]
[1765935984332,0.23004237,87703.0,87702.0,0.01461975]
[1765935984729,0.22804237,87703.0,87702.0,0.01461975]
[1765935985101,0.22904237,87703.0,87702.0,0.05478975]
[1765935985435,0.001,87703.0,87702.0,0.05478975]
[1765935988785,0.22904237,87703.0,87702.0,0.05478975]
[1765935988993,0.001,87703.0,87702.0,0.05478975]
[1765935991133,0.03026301,87703.0,87702.0,0.00232975]
[1765935991343,0.001,87703.0,87702.0,0.00232975]
[1765935992116,0.24604201,87704.0,87702.0,0.00232975]
[1765935992314,0.001,87703.0,87702.0,0.00161287]